bitfinex/quotes_SOLUSD_20260120
["timestamp","ask_amount","ask_price","bid_price","bid_amount"]
[1768867836740,3.01258099,133.62,133.59,0.46165621]
[1768867839065,109.5824329,133.65,133.6,0.46165621]
[1768867839238,112.59501389,133.65,133.61,0.46165621]
[1768867841563,112.59501389,133.65,133.61,3.4742372]
[1768867841564,102.1,133.65,133.61,3.4742372]
[1768867841735,16.32,133.66,133.63,0.47318128]
[1768867841936,10.59321448,133.68,133.63,0.47318128]
[1768867842141,10.59321448,133.68,133.65,0.47318128]
[1768867842142,0.1,133.68,133.65,0.47318128]
[1768867842348,0.1,133.68,133.65,0.44318132]
[1768867842862,0.1,133.68,133.66,3.01258099]
[1768867843249,0.1,133.68,133.61,26.19562767]
[1768867843557,0.1,133.68,133.65,3.01258099]
[1768867844255,0.1,133.68,133.66,0.47318128]
[1768867848168,0.1,133.68,133.67,0.47318128]
[1768867849650,0.1,133.71,133.68,0.47318128]
[1768867850265,0.1,133.71,133.7,0.47318128]
[1768867854264,0.1,133.73,133.71,0.47601232]
[1768867854468,0.1,133.73,133.7,0.47601232]
[1768867855047,0.1,133.73,133.71,0.47601232]
[1768867855271,0.1,133.74,133.72,0.47601232]
[1768867857353,0.1,133.74,133.72,3.48859331]
[1768867857861,0.1,133.74,133.73,0.47601232]
[1768867858876,0.1,133.74,133.71,7.47862013]
[1768867858877,0.32999996,133.73,133.69,7.95570701]
[1768867859082,3.11258099,133.74,133.7,0.47601232]
[1768867859256,3.01258099,133.73,133.7,0.47601232]
[1768867859573,3.01258099,133.73,133.69,0.47601232]
[1768867861272,3.01258099,133.71,133.67,0.47601232]
[1768867861469,3.01258099,133.69,133.66,0.47601232]
[1768867861661,7.4778199,133.73,133.66,0.47601232]
[1768867861858,3.01258099,133.7,133.66,0.47601232]
[1768867862369,26.1722041,133.73,133.66,0.47601232]
[1768867862675,3.01258099,133.69,133.66,0.47601232]
[1768867862855,3.01258099,133.7,133.66,0.47601232]
[1768867863265,10.49255497,133.7,133.66,0.47601232]
[1768867863661,3.01258099,133.69,133.66,0.47601232]
[1768867863867,10.49255497,133.7,133.66,0.47601232]
[1768867864377,26.17303712,133.73,133.67,0.47601232]
[1768867864757,3.01258099,133.72,133.68,0.47601232]
[1768867865153,7.47775368,133.73,133.68,0.47601232]
[1768867865352,3.01258099,133.72,133.68,0.47601232]
[1768867865563,3.01258099,133.71,133.68,0.47601232]
[1768867865870,3.01258099,133.69,133.66,0.47601232]
[1768867867280,10.4924191,133.7,133.66,0.47601232]
[1768867867875,3.01258099,133.69,133.66,0.47601232]
[1768867868466,3.01258099,133.68,133.64,0.47601232]
[1768867868855,16.3,133.72,133.66,0.47601232]
[1768867869059,3.01258099,133.7,133.67,0.47601232]
[1768867870570,10.49216224,133.7,133.67,0.47601232]
[1768867871076,10.49216224,133.7,133.66,0.47601232]
[1768867871077,3.01258099,133.69,133.66,0.47601232]
[1768867872280,3.01258099,133.68,133.64,0.47601232]
[1768867872460,3.01258099,133.67,133.64,0.47601232]
[1768867873180,3.01258099,133.67,133.63,0.47601232]
[1768867873360,3.01258099,133.66,133.63,0.47601232]
[1768867875063,3.01258099,133.65,133.63,0.47601232]
[1768867875278,10.49434574,133.66,133.63,0.47601232]
[1768867876080,3.01258099,133.65,133.61,0.47601232]
[1768867876888,10.49504256,133.65,133.61,0.47601232]
[1768867878697,3.01258099,133.65,133.62,0.47601232]
[1768867879492,10.49450702,133.66,133.62,0.47601232]
[1768867882902,3.01258099,133.64,133.62,0.47601232]
[1768867883570,3.01258099,133.63,133.6,0.49982294]
[1768867884789,7.48298051,133.64,133.6,0.49982294]
[1768867884974,3.01298754,133.63,133.6,0.49982294]
[1768867885580,7.48298051,133.64,133.59,0.49982294]
[1768867885581,3.01298754,133.62,133.59,0.49982294]
[1768867886590,26.18388568,133.67,133.59,0.49982294]
[1768867886901,3.01298754,133.62,133.59,0.49982294]
[1768867887274,26.18388568,133.67,133.59,0.49982294]
[1768867887477,3.01298754,133.62,133.59,0.49982294]
[1768867890279,7.48305664,133.64,133.59,7.48555131]
[1768867890483,3.01298754,133.63,133.6,0.49982294]
[1768867892100,10.4963803,133.63,133.6,0.49982294]
[1768867894802,3.01298754,133.62,133.6,0.49982294]
[1768867895884,2.95298753,133.62,133.6,0.49982294]
[1768867897180,10.43702075,133.62,133.59,0.49982294]
[1768867897384,10.49702076,133.62,133.59,0.49982294]
[1768867898205,16.32,133.64,133.59,0.49982294]
[1768867898405,3.01298754,133.63,133.59,0.49982294]
[1768867898993,3.01298754,133.63,133.59,7.98535649]
[1768867899611,10.49637019,133.63,133.6,0.49982294]
[1768867901216,7.48338265,133.63,133.6,0.49982294]
[1768867901510,10.49637019,133.63,133.6,0.49982294]
[1768867904810,3.01298754,133.62,133.6,0.49982294]
[1768867908119,7.48338265,133.63,133.6,0.49982294]
[1768867908414,3.01298754,133.63,133.6,0.49982294]
[1768867910716,10.49678359,133.63,133.6,0.49982294]
[1768867911521,3.01298754,133.62,133.6,0.49982294]
[1768867911743,2.95298754,133.62,133.6,0.49982294]
[1768867915216,10.49678359,133.63,133.6,0.49982294]
[1768867915822,3.01298754,133.62,133.6,0.49982294]
[1768867916629,10.49678359,133.63,133.6,0.49982294]
[1768867920328,3.01298754,133.61,133.58,0.48856923]
[1768867920511,3.01298754,133.59,133.56,0.48856923]
[1768867921621,10.49833756,133.6,133.56,0.48856923]
[1768867922225,3.01298754,133.59,133.56,0.48856923]
[1768867923911,3.01298754,133.58,133.56,0.48856923]
[1768867925528,10.49922059,133.58,133.56,0.48856923]
[1768867926334,3.01298754,133.57,133.54,0.48856923]
[1768867927432,10.49973232,133.57,133.54,0.48856923]
[1768867927739,3.01298754,133.56,133.54,0.48856923]
[1768867930126,7.48783227,133.55,133.54,0.48856923]
[1768867930436,7.48719279,133.57,133.54,0.48856923]
[1768867930734,10.50018033,133.57,133.54,0.48856923]
[1768867931932,3.01298754,133.57,133.54,0.48856923]
[1768867933743,3.01298754,133.56,133.54,0.48856923]
[1768867933925,2.95298754,133.56,133.54,0.48856923]
[1768867934244,10.49972304,133.57,133.54,0.48856923]
[1768867934626,3.01298754,133.56,133.54,0.48856923]
[1768867935636,3.01298754,133.56,133.52,0.2]
[1768867935637,3.01298754,133.55,133.53,0.48856923]
[1768867936027,35.03595752,133.58,133.53,0.48856923]
[1768867936028,10.5004165,133.56,133.53,0.48856923]
[1768867937039,7.48742896,133.56,133.53,0.48856923]
[1768867937338,10.5004165,133.56,133.53,0.48856923]
[1768867937744,0.45293786,133.55,133.52,1e-08]
[1768867937935,3.01298754,133.54,133.52,1e-08]
[1768867938359,2.95298754,133.54,133.52,1e-08]
[1768867938848,0.45293786,133.55,133.52,1e-08]
[1768867939023,3.01298754,133.54,133.52,1e-08]
[1768867939741,3.4659254,133.53,133.5,0.48856923]
[1768867940145,3.01298754,133.52,133.5,0.48856923]
[1768867940333,2.95298753,133.52,133.5,0.48856923]
[1768867940643,3.4659254,133.53,133.5,0.48856923]
[1768867940940,10.95500224,133.53,133.5,0.48856923]
[1768867941145,3.01298754,133.52,133.5,0.48856923]
[1768867941771,3.01298754,133.51,133.48,0.48856923]
[1768867942240,3.4659254,133.52,133.48,0.48856923]
[1768867942941,3.01298754,133.51,133.48,0.48856923]
[1768867943240,3.47231012,133.51,133.48,0.48856923]
[1768867943851,3.01298754,133.5,133.48,0.48856923]
[1768867944021,3.47231012,133.51,133.48,0.48856923]
[1768867944724,3.01298754,133.5,133.48,0.48856923]
[1768867944929,10.9624944,133.51,133.48,0.48856923]
[1768867945847,10.9624944,133.51,133.47,0.68672417]
[1768867947049,10.96793751,133.51,133.47,0.68672417]
[1768867947446,3.01843065,133.5,133.47,0.68672417]
[1768867947647,3.01843065,133.48,133.46,0.2]
[1768867947823,3.41775315,133.47,133.45,0.2]
[1768867949921,0.42856914,133.46,133.44,0.2]
[1768867950150,7.49272468,133.47,133.44,0.68672417]
[1768867950522,102.1,133.54,133.47,0.48672417]
[1768867950735,7.71721817,133.54,133.5,0.48672417]
[1768867950929,7.71721817,133.54,133.51,0.48672417]
[1768867951329,10.73564882,133.54,133.51,0.48672417]
[1768867954150,35.05772568,133.57,133.51,3.50515482]
[1768867954337,26.84540311,133.57,133.53,0.48672417]
[1768867954649,27.07397225,133.57,133.53,0.48672417]
[1768867955157,10.73397225,133.57,133.53,0.48672417]
[1768867959854,7.48697246,133.57,133.54,0.48672417]
[1768867960035,10.50540311,133.57,133.54,0.48672417]
[1768867961556,10.50463869,133.58,133.54,0.48672417]
[1768867961856,3.24699979,133.57,133.53,0.45882374]
[1768867965257,0.22856914,133.57,133.54,0.45882374]
[1768867965561,10.73320783,133.58,133.54,0.45882374]
[1768867967943,0.22856914,133.56,133.53,0.45882374]
[1768867968862,10.73389864,133.57,133.53,0.45882374]
[1768867970859,3.24699979,133.54,133.51,0.45882374]
[1768867971066,3.01843065,133.54,133.51,0.45882374]
[1768867971263,3.24699979,133.55,133.51,0.45882374]
[1768867972866,10.73517962,133.55,133.51,0.45882374]
[1768867973943,10.50661048,133.55,133.51,0.45882374]
[1768867976364,10.73517962,133.55,133.51,0.45882374]
[1768867976567,3.24699979,133.55,133.51,7.94887398]
[1768867976769,3.24699979,133.55,133.52,0.46980472]
[1768867977065,3.01843065,133.55,133.52,0.46980472]
[1768867978670,7.4869497,133.57,133.53,0.46980472]
[1768867978877,10.50538035,133.57,133.53,0.46980472]
[1768867979082,112.83318713,133.58,133.54,0.46980472]
[1768867980154,102.1,133.58,133.55,0.46980472]
[1768867980360,21.95862333,133.61,133.57,0.46980472]
[1768867980552,21.95862333,133.61,133.57,0.43980474]
[1768867980553,7.71322364,133.61,133.57,0.43980474]
[1768867980753,10.73165429,133.61,133.57,0.43980474]
[1768867981367,3.27699977,133.6,133.55,3.01843065]
[1768867982277,7.48545563,133.6,133.55,10.50625697]
[1768867982475,7.48545563,133.6,133.57,0.46980472]
[1768867982771,3.27699977,133.59,133.55,0.46980472]
[1768867983664,3.01843065,133.59,133.55,0.46980472]
[1768867984781,10.50409144,133.59,133.55,0.46980472]
[1768867985782,7.48566079,133.59,133.55,0.46980472]
[1768867985967,7.48566079,133.59,133.56,0.46980472]
[1768867986373,7.171266,133.59,133.56,0.46980472]
[1768867986678,7.171266,133.59,133.56,0.43980473]
[1768867987183,10.47826576,133.59,133.56,0.43980473]
[1768867987567,10.18969665,133.59,133.56,0.43980473]
[1768867988080,10.47826576,133.59,133.56,0.40980474]
[1768867988281,10.50826575,133.59,133.54,3.01843065]
[1768867988752,3.33699975,133.58,133.53,10.50713338]
[1768867990077,10.82344755,133.58,133.54,0.46980472]
[1768867991478,10.82344755,133.58,133.55,0.46980472]
[1768867991671,10.82285385,133.59,133.55,0.46980472]
[1768867991869,7.4858541,133.59,133.56,0.46980472]
[1768867992064,10.82230112,133.6,133.56,0.46980472]
[1768867992374,29.53487597,133.6,133.56,0.46980472]
[1768867992978,26.19787622,133.6,133.57,0.46980472]
[1768867993286,29.56487596,133.6,133.57,0.43980473]
[1768867993460,29.56487596,133.6,133.57,0.40980474]
[1768867995970,29.56487596,133.6,133.55,3.01843065]
[1768867995971,29.56487596,133.6,133.56,0.46980472]
[1768867999774,0.49344489,133.57,133.53,3.01843065]
[1768868000481,0.49344489,133.57,133.52,7.48950769]
[1768868000673,0.49344489,133.57,133.53,3.01843065]
[1768868001288,7.98036016,133.57,133.53,3.01843065]
[1768868001824,7.98036016,133.57,133.54,0.46980472]
[1768868002487,3.51187554,133.55,133.51,0.46980472]
[1768868002992,0.49344489,133.55,133.52,0.48039739]
[1768868003169,29.69020283,133.57,133.53,0.48039739]
[1768868003370,3.01843065,133.56,133.53,0.48039739]
[1768868003888,3.48650985,133.56,133.53,0.48039739]
[1768868004789,7.48783227,133.55,133.53,0.48039739]
[1768868016892,3.01575343,133.54,133.51,0.48039739]
[1768868017479,3.48383263,133.54,133.51,0.48039739]
[1768868017685,3.48383263,133.54,133.47,83.8565132]
[1768868017686,3.48383263,133.53,133.5,0.48039739]
[1768868018997,0.4680792,133.52,133.48,0.48039739]
[1768868019294,3.42383264,133.52,133.48,0.48039739]
[1768868020777,10.91370585,133.52,133.48,0.48039739]
[1768868024320,7.89795242,133.52,133.48,0.48039739]
[1768868024606,10.91370585,133.52,133.48,0.48039739]
[1768868025297,7.89795242,133.52,133.48,3.49615082]
[1768868025502,7.89795242,133.52,133.49,0.46178256]
[1768868032008,22.48,133.63,133.52,7.89795242]
[1768868032307,16.34,133.65,133.59,0.46178256]
[1768868032490,16.34,133.65,133.6,0.46178256]
[1768868032690,3.01575343,133.64,133.58,3.47753599]
[1768868032899,3.01575343,133.64,133.59,0.46178256]
[1768868033395,3.01575343,133.61,133.54,6.43746633]
[1768868033593,19.35575343,133.61,133.56,0.48095313]
[1768868033788,19.35575343,133.61,133.56,3.49670656]
[1768868034009,19.8418653,133.61,133.57,7.48671108]
[1768868034407,16.82611187,133.61,133.57,7.48671108]
[1768868034606,16.82611187,133.61,133.57,7.96766421]
[1768868035100,0.5,133.6,133.57,7.96766421]
[1768868036991,0.5,133.6,133.57,10.98341764]
[1768868037191,0.5,133.6,133.57,7.96766421]
[1768868037397,0.5,133.6,133.57,10.98341764]
[1768868038507,0.98611187,133.6,133.56,0.48095313]
[1768868038689,0.48611187,133.59,133.55,7.48783227]
[1768868038890,0.48611187,133.59,133.56,3.01575343]
[1768868040309,0.48611187,133.59,133.55,10.98453883]
[1768868040829,0.48611187,133.59,133.57,3.01575343]
[1768868041118,0.48611187,133.59,133.56,3.01575343]
[1768868041703,0.5,133.58,133.55,26.68836608]
[1768868041893,0.48611187,133.59,133.55,26.68836608]
[1768868041894,0.48611187,133.59,133.56,10.50277663]
[1768868042400,0.48611187,133.61,133.57,3.49670656]
[1768868042602,0.48611187,133.61,133.57,3.01575343]
[1768868043325,0.48611187,133.61,133.57,3.49670656]
[1768868043615,0.48611187,133.61,133.56,7.4870232]
[1768868043795,0.48611187,133.61,133.57,3.01575343]
[1768868044402,0.48611187,133.61,133.57,10.50239617]
[1768868045213,3.5018653,133.6,133.56,7.96806459]
[1768868045399,0.48611187,133.6,133.56,10.98381802]
[1768868045600,0.48611187,133.6,133.57,3.01575343]
[1768868046490,0.48611187,133.6,133.57,10.50227959]
[1768868050214,0.48611187,133.6,133.57,10.98323272]
[1768868050518,0.48611187,133.6,133.57,7.96747929]
[1768868050816,0.48611187,133.6,133.57,10.98323272]
[1768868051198,0.48611187,133.6,133.58,3.01575343]
[1768868051507,0.48611187,133.6,133.57,10.98323272]
[1768868052423,10.49972883,133.62,133.59,3.01575343]
[1768868052424,0.48611187,133.62,133.59,3.01575343]
[1768868057026,0.48611187,133.62,133.59,3.49670656]
[1768868059314,0.48611187,133.62,133.59,10.98219189]
[1768868059633,0.48611187,133.64,133.61,10.98093909]
[1768868059818,0.48611187,133.64,133.61,7.96518566]
[1768868060022,0.48611187,133.64,133.62,3.01575343]
[1768868060830,0.48611187,133.65,133.63,3.01575343]
[1768868061844,0.48611187,133.67,133.64,3.01575343]
[1768868062211,0.48611187,133.67,133.63,0.48095313]
[1768868062409,0.48611187,133.67,133.63,3.49670656]
[1768868062722,0.48611187,133.67,133.64,3.01575343]
[1768868068737,0.49453345,133.66,133.61,0.46459773]
[1768868069033,0.49453345,133.66,133.62,3.01126334]
[1768868069229,0.49453345,133.66,133.61,7.94877911]
[1768868069428,0.49453345,133.66,133.62,3.01126334]
[1768868073139,0.49453345,133.66,133.62,10.49510104]
[1768868074622,0.49453345,133.65,133.62,3.01126334]
[1768868074829,0.49453345,133.65,133.61,7.94879071]
[1768868075031,0.49453345,133.64,133.6,3.47586107]
[1768868075232,0.49453345,133.63,133.6,3.01126334]
[1768868075815,0.49453345,133.63,133.6,10.49625998]
[1768868077640,0.49453345,133.63,133.61,3.01126334]
[1768868077838,3.01126334,133.65,133.61,3.01126334]
[1768868079048,3.01126334,133.66,133.61,3.47586107]
[1768868079552,3.11126334,133.68,133.63,3.47586107]
[1768868079718,0.49453345,133.67,133.63,3.47586107]
[1768868079925,0.49453345,133.66,133.63,3.47586107]
[1768868080425,0.49453345,133.66,133.63,3.01126334]
[1768868080626,0.49453345,133.66,133.62,3.47586107]
[1768868080826,0.43453346,133.66,133.62,3.47586107]
[1768868081445,0.43453346,133.66,133.62,0.46459773]
[1768868081637,0.43453346,133.66,133.62,3.47586107]
[1768868083558,0.47331809,133.64,133.6,7.96331637]
[1768868083852,0.47331809,133.64,133.6,10.97457971]
[1768868084024,0.47331809,133.64,133.6,10.49602597]
[1768868084378,0.47331809,133.64,133.61,0.47855374]
[1768868085223,0.47331809,133.64,133.61,3.48981708]
[1768868087247,0.47331809,133.64,133.6,7.48476263]
[1768868087463,0.47331809,133.63,133.6,3.48981708]
[1768868087825,0.47331809,133.63,133.6,0.47855374]
[1768868088047,0.47331809,133.63,133.6,3.48981708]
[1768868089955,0.47331809,133.62,133.58,7.96450841]
[1768868090155,0.4133181,133.62,133.58,3.48981708]
[1768868091552,0.4133181,133.62,133.58,10.97590046]
[1768868095461,0.4133181,133.62,133.58,7.96463712]
[1768868095770,0.4133181,133.62,133.58,10.97590046]
[1768868098459,0.4133181,133.62,133.58,7.96463712]
[1768868100267,0.48945671,133.61,133.58,3.48981708]
[1768868100480,0.42945672,133.61,133.58,0.47855374]
[1768868100655,3.01126334,133.61,133.56,10.95336288]
[1768868100851,7.48394239,133.62,133.56,10.95336288]
[1768868101164,3.01126334,133.61,133.57,7.94151794]
[1768868101354,10.49520573,133.62,133.57,7.94151794]
[1768868102368,0.48945671,133.61,133.57,7.94151794]
[1768868102560,0.48945671,133.61,133.57,10.95278128]
[1768868104372,0.48945671,133.61,133.58,0.45483221]
[1768868105478,7.48394239,133.62,133.59,0.45483221]
[1768868105479,0.48945671,133.62,133.59,0.45483221]
[1768868106050,0.48945671,133.62,133.58,3.46609555]
[1768868106895,0.48945671,133.62,133.59,7.94042244]
[1768868107073,0.48945671,133.62,133.6,0.45483221]
[1768868107371,0.48945671,133.62,133.59,7.48559023]
[1768868107566,0.48945671,133.62,133.59,0.45483221]
[1768868111687,7.97340065,133.62,133.59,0.45483221]
[1768868112676,0.48945671,133.62,133.59,0.45483221]
[1768868114357,7.97346134,133.62,133.59,0.45483221]
[1768868114675,10.98472468,133.62,133.59,0.45483221]
[1768868116861,0.48945671,133.62,133.59,0.45483221]
[1768868118474,0.48945671,133.63,133.6,0.45483221]
[1768868121765,0.48945671,133.62,133.59,3.46609555]
[1768868121970,0.42945672,133.62,133.58,0.45483221]
[1768868122169,7.91341296,133.62,133.58,0.45483221]
[1768868126882,0.42945672,133.62,133.58,7.94094017]
[1768868127084,0.42945672,133.62,133.59,0.49852496]
[1768868127993,7.9133947,133.62,133.59,0.49852496]
[1768868129892,7.85339471,133.62,133.59,0.49852496]
[1768868131789,7.85339471,133.62,133.57,7.48642322]
[1768868131790,0.46483664,133.61,133.57,0.49852496]
[1768868131989,0.46483664,133.6,133.57,0.49852496]
[1768868132584,7.94986748,133.6,133.57,0.49852496]
[1768868134700,10.96285021,133.6,133.57,0.49852496]
[1768868134896,0.46483664,133.59,133.55,0.49852496]
[1768868135096,3.41781938,133.58,133.55,0.49852496]
[1768868136683,10.49964913,133.58,133.54,0.49852496]
[1768868136903,7.4866664,133.58,133.54,0.49852496]
[1768868137190,0.46483664,133.57,133.54,0.49852496]
[1768868138402,3.47781937,133.57,133.54,0.49852496]
[1768868139502,0.46483664,133.57,133.54,0.49852496]
[1768868141203,10.9648306,133.57,133.54,0.49852496]
[1768868141507,3.47781937,133.56,133.52,0.49852496]
[1768868142101,0.46483664,133.56,133.52,7.98791372]
[1768868142306,0.47130829,133.59,133.55,0.47530497]
[1768868142502,3.48429102,133.59,133.55,0.47530497]
[1768868142702,0.47130829,133.59,133.55,0.47530497]
[1768868142913,3.48429102,133.59,133.55,0.47530497]
[1768868143702,10.97025779,133.59,133.55,0.47530497]
[1768868144311,0.47130829,133.58,133.55,0.47530497]
[1768868145410,7.95759836,133.58,133.55,0.47530497]
[1768868150031,7.48629007,133.58,133.55,0.47530497]
[1768868151130,7.95759836,133.58,133.55,0.47530497]
[1768868152327,0.47130829,133.57,133.55,0.47530497]
[1768868152535,0.47130829,133.57,133.54,0.47530497]
[1768868153224,3.48429102,133.57,133.52,0.46230977]
[1768868153429,0.45257463,133.55,133.52,0.46230977]
[1768868153834,7.94049059,133.55,133.52,0.46230977]
[1768868154913,0.45257463,133.54,133.51,0.46230977]
[1768868155309,3.46555736,133.53,133.5,0.46230977]
[1768868155720,3.46555736,133.53,133.46,18.93163929]
[1768868155721,0.45257463,133.52,133.49,0.46230977]
[1768868155921,10.95534666,133.52,133.49,0.46230977]
[1768868156740,3.46555736,133.51,133.48,0.46230977]
[1768868156915,3.46555736,133.51,133.46,7.69270095]
[1768868156916,0.45257463,133.48,133.46,0.2]
[1768868157113,3.703,133.44,133.43,0.66230977]
[1768868157430,0.45257463,133.48,133.44,0.05453339]
[1768868158738,7.94451158,133.48,133.44,0.05453339]
[1768868159418,0.45257463,133.48,133.44,0.05453339]
[1768868159620,0.45257463,133.48,133.44,3.06751612]
[1768868159943,3.46555736,133.48,133.44,3.06751612]
[1768868160129,3.46555736,133.48,133.44,7.54851023]
[1768868160331,3.46555736,133.48,133.44,10.56149296]
[1768868160733,10.95630704,133.5,133.46,0.05453339]
[1768868160919,3.01298273,133.5,133.46,3.06751612]
[1768868161121,0.45257463,133.49,133.44,26.28352222]
[1768868161432,0.45257463,133.46,133.43,0.2]
[1768868162134,0.45257463,133.47,133.43,10.76207703]
[1768868162349,0.45257463,133.48,133.45,3.01298273]
[1768868163453,0.39257463,133.48,133.45,3.01298273]
[1768868164043,0.39257463,133.48,133.44,10.56132359]
[1768868164547,3.40555736,133.48,133.44,10.56132359]
[1768868164842,0.39257463,133.48,133.44,10.56132359]
[1768868165040,3.01298273,133.46,133.43,0.2]
[1768868165348,3.46555736,133.46,133.43,0.2]
[1768868166225,0.45257463,133.45,133.43,0.2]
[1768868168164,0.45257463,133.46,133.43,10.82200047]
[1768868168565,0.45257463,133.46,133.43,3.32751612]
[1768868168880,0.45257463,133.47,133.43,10.82204224]
[1768868169680,0.45257463,133.47,133.43,0.2]
[1768868169981,0.45257463,133.47,133.43,10.82206478]
[1768868170176,0.45257463,133.48,133.44,0.11453339]
[1768868170362,0.45257463,133.48,133.45,3.01298273]
[1768868170878,0.45257463,133.48,133.44,3.12751612]
[1768868172181,0.45257463,133.48,133.44,10.62140897]
[1768868172886,0.45257463,133.48,133.44,7.60842624]
[1768868173094,0.45257463,133.48,133.44,10.62140897]
[1768868174590,0.45257463,133.49,133.45,3.12751612]
[1768868175088,3.46555736,133.49,133.45,3.12751612]
[1768868175290,0.45257463,133.49,133.45,3.12751612]
[1768868175588,3.46555736,133.49,133.45,3.12751612]
[1768868175796,0.45257463,133.47,133.44,7.49389285]
[1768868176090,0.45257463,133.46,133.43,7.69452347]
[1768868176398,0.45257463,133.45,133.43,0.2]
[1768868177486,0.45257463,133.46,133.43,10.70753598]
[1768868177682,0.45257463,133.46,133.43,7.69455325]
[1768868177885,0.45257463,133.46,133.43,10.70753598]
[1768868178079,0.45257463,133.46,133.43,7.69455325]
[1768868178592,0.45257463,133.45,133.43,0.2]
[1768868178990,0.45257463,133.45,133.43,10.70741745]
[1768868179583,3.01298273,133.47,133.43,7.69443472]
[1768868179869,0.45257463,133.48,133.44,3.12751612]
[1768868180076,0.45257463,133.47,133.43,10.82195084]
[1768868180393,3.46555736,133.47,133.43,10.82195084]
[1768868180784,0.45257463,133.47,133.43,10.82195084]
[1768868180977,0.45257463,133.47,133.44,0.11453339]
[1768868181183,0.45257463,133.49,133.46,3.01298273]
[1768868182798,0.45257463,133.51,133.48,0.11453339]
[1768868182969,0.45257463,133.51,133.48,3.01298273]
[1768868183692,0.45257463,133.51,133.49,3.01298273]
[1768868183997,0.46888478,133.52,133.49,3.01298273]
[1768868185198,0.46888478,133.52,133.49,10.50400839]
[1768868185972,0.46888478,133.52,133.48,10.50449087]
[1768868186177,0.46888478,133.51,133.47,7.49222231]
[1768868186376,0.46888478,133.51,133.47,10.50520504]
[1768868187098,0.46888478,133.51,133.47,10.61973843]
[1768868187998,0.46888478,133.5,133.47,10.50520504]
[1768868188897,0.46888478,133.5,133.46,10.50565256]
[1768868189196,0.46888478,133.48,133.44,3.12751612]
[1768868189490,0.46888478,133.49,133.45,10.62080221]
[1768868189795,3.48186751,133.49,133.45,10.62080221]
[1768868190197,0.46888478,133.49,133.45,10.62080221]
[1768868192000,3.48186751,133.49,133.45,10.62080221]
[1768868192598,0.46888478,133.48,133.45,0.11453339]
[1768868192790,0.46888478,133.48,133.45,3.12751612]
[1768868192992,0.46888478,133.48,133.45,3.13360125]
[1768868194401,0.46888478,133.47,133.43,10.71341899]
[1768868196891,0.46888478,133.47,133.43,10.82795238]
[1768868198097,0.46888478,133.46,133.43,0.2]
[1768868198609,0.46888478,133.46,133.43,3.21906786]
[1768868200384,0.46888478,133.46,133.43,10.71354051]
[1768868200599,0.46888478,133.46,133.43,7.69447265]
[1768868200805,0.46888478,133.46,133.43,10.71354051]
[1768868206520,0.46888478,133.46,133.43,7.69447265]
[1768868206721,0.46888478,133.46,133.43,10.71354051]
[1768868208117,0.47372071,133.47,133.44,3.01906786]
[1768868208324,0.47372071,133.49,133.45,3.13360125]
[1768868208495,0.47372071,133.49,133.46,3.01906786]
[1768868208894,0.47372071,133.49,133.47,3.01906786]
[1768868209096,0.47372071,133.52,133.48,0.11453339]
[1768868209399,0.47372071,133.52,133.48,3.13360125]
[1768868209712,0.47372071,133.52,133.47,0.11453339]
[1768868209911,0.47372071,133.52,133.49,3.01906786]
[1768868212111,0.47372071,133.52,133.5,3.01906786]
[1768868212913,0.47372071,133.52,133.49,3.01906786]
[1768868213414,0.47372071,133.52,133.48,7.60602992]
[1768868213622,0.47372071,133.52,133.49,3.01906786]
[1768868214614,0.47372071,133.52,133.48,7.60602992]
[1768868214916,0.47372071,133.52,133.49,3.01906786]
[1768868218624,0.47036872,133.51,133.48,3.01906786]
[1768868218825,0.47036872,133.5,133.47,3.01906786]
[1768868219025,0.47036872,133.5,133.46,3.01906786]
[1768868219404,0.47036872,133.5,133.46,10.51190105]
[1768868220125,0.47036872,133.5,133.46,7.49283319]
[1768868220304,0.47036872,133.5,133.45,7.6079382]
[1768868220509,0.47036872,133.49,133.44,7.60832923]
[1768868220720,0.47036872,133.49,133.45,3.01906786]
[1768868221223,0.47036872,133.48,133.44,3.01906786]
[1768868222628,0.41036872,133.48,133.44,10.51305162]
[1768868222922,0.41036872,133.48,133.45,3.01906786]
[1768868223710,7.49073548,133.5,133.46,3.19360125]
[1768868223928,10.50937754,133.51,133.46,3.19360125]
[1768868224111,10.50937754,133.51,133.45,0.17453339]
[1768868224314,10.50937754,133.51,133.46,3.01906786]
[1768868224623,102.1,133.55,133.44,3.19360125]
[1768868224624,0.47036872,133.48,133.44,3.19360125]
[1768868226029,0.47036872,133.48,133.44,0.17453339]
[1768868226225,0.47036872,133.48,133.44,3.01906786]
[1768868226428,0.47036872,133.47,133.43,3.21906786]
[1768868226928,0.47036872,133.49,133.45,3.19360125]
[1768868227137,0.47036872,133.49,133.46,3.01906786]
[1768868227544,0.47036872,133.49,133.46,3.19360125]
[1768868228244,0.47036872,133.49,133.46,3.01906786]
[1768868230236,0.47036872,133.47,133.44,0.17453339]
[1768868230416,0.47036872,133.47,133.44,3.19360125]
[1768868230751,0.47036872,133.47,133.44,3.01906786]
[1768868231240,0.47036872,133.47,133.43,10.88782023]
[1768868232037,0.47036872,133.47,133.44,10.51304035]